{"text_format":"1","workbook":"xlsx","n_sheets":9,"sheets":["Identification","Personnel","Fonctionnement","Équipement","Récapitulatif","Déclaration créance","Déclaration APE","Récapitulatif APE","Divers"],"not_rendered":{"charts":0,"images":0,"macros":1,"external_links":0,"defined_names":0,"comments":1,"pivot_tables":0},"unopened":[],"bounds":{"document_bytes":16777216,"sheet_cells":100000,"rows_first":2000,"rows_last":500,"rows_between":2000,"halvings":0,"cell_chars":16384,"cell_head_chars":4096},"cells_cut":0,"cells_raw":0,"read":"whole","date_system":"1900"}

{"sheet":"Identification","index":0,"n_rows":47,"n_cols":7,"rows_kept":47,"cut":false,"hidden":false,"merged":[[17,5,17,8],[20,5,21,8],[1,1,1,3],[3,6,3,7],[4,6,4,7],[15,1,15,2],[16,1,16,3],[14,5,15,8],[46,1,46,3],[34,2,34,3],[17,1,17,3],[26,1,26,2],[31,1,31,3],[33,2,33,3],[23,1,23,2],[35,2,35,3],[36,2,36,3],[42,2,42,3],[43,2,43,3],[37,2,37,3],[38,2,38,3],[39,2,39,3],[40,2,40,3],[41,2,41,3]]}
[]
[null,"Identification & Informations générales"]
[null,"Version 1.3"]
[null,null,"N° de convention :",null,null,null,"Attention : Vous ne devez remplir que les cases en jaune."]
[null,null,"Acronyme :",null,null,null,"Les cases en bleu sont remplies par le SPW."]
[null,null,"Ministre :","Borsus"]
[null,null,"Nom du requérant :"]
[null,null,"N° BCE :"]
[null,null,null,null,null,null,"Relevé contrôlé par :"]
[null,null,null,null,null,null,"Date de contrôle :"]
[null,null,"Personne de contact :"]
[null,null,"Téléphone :"]
[null,null,"Email :"]
[null,null,null,null,null,"Un problème de remplissage ?"]
[null,null,null,null,null,"--> Notice explicative disponible sur le portail (au même endroit que le relevé)"]
[null,"L'ensemble des rapports prévus ont-ils été envoyés :"]
[null,null,null,null,null,"Un problème technique/informatique ?"]
[null,{"$f":"IF(OR(ISBLANK(D16),EXACT(D16,Divers!A2)),\"\",\"Il vous sera impossible d'accéder à l'onglet d'impression de votre déclaration de créance.\")","v":""},null,null,null,"--> FAQ disponible sur le portail (au même endroit que le relevé)"]
[]
[null,null,null,null,null,"Un autre problème ?"]
[null,null,"Durée de la période de dépense :","6 mois",null,"--> Prendre contact avec les personnes de contact sur le portail ou votre gestionnaire comptable"]
[null,null,"1er mois de la période de dépense :"]
[]
[null,"Je suis une Université ou une Haute École :"]
[]
[null,null,"Mes frais généraux sont de :",0.15]
[null,"L'intervention de la Région Wallone est de :"]
[]
[null,null,"Récupérez-vous la TVA sur les achats :"]
[]
[]
[null,"Le personnel affecté au projet se compose de :"]
[]
[null,"Statut","Nom du prestataire"]
[]
[]
[]
[]
[]
[]
[]
[]
[]
[]
[null,"END_LIST"]
[]
[null,{"$f":"IF(OR(ISBLANK(D4),ISBLANK(D5),ISBLANK(D7),ISBLANK(D8),ISBLANK(D11),ISBLANK(D12),ISBLANK(D13),ISBLANK(D16),ISBLANK(D21),ISBLANK(D22),ISBLANK(D24),ISBLANK(D29)),\"Certaines informations sont manquantes. Il est impossible de continuer à remplir le relevé de dépense.\",\"\")","v":"Certaines informations sont manquantes. Il est impossible de continuer à remplir le relevé de dépense."}]

{"sheet":"Personnel","index":1,"n_rows":8,"n_cols":7,"rows_kept":8,"cut":false,"hidden":false,"merged":[[1,1,1,6],[3,1,3,4],[4,1,4,4],[5,1,5,4]]}
["OTHER_6"]
[null,"Ventilation et détail des frais de personnel"]
[]
[null,"Mon taux de chargement Employé est de :"]
[null,"Mon taux de chargement Ouvrier est de :"]
[null,"Mon taux de chargement Administrateur est de :",null,null,null,1,1]
[]
[null,"END_FORM"]

{"sheet":"Fonctionnement","index":2,"n_rows":15,"n_cols":22,"rows_kept":15,"cut":false,"hidden":false,"merged":[[13,17,13,18],[13,19,13,20],[13,21,13,22],[11,17,11,18],[11,19,11,20],[10,17,10,18],[10,19,10,20],[10,21,10,22],[8,17,8,18],[8,19,8,20],[11,21,11,22],[12,17,12,18],[12,19,12,20],[12,21,12,22],[7,17,7,18],[7,19,7,20],[7,21,7,22],[5,17,5,18],[5,19,5,20],[8,21,8,22],[9,17,9,18],[9,19,9,20],[9,21,9,22],[3,21,3,22],[3,17,3,18],[4,17,4,18],[4,19,4,20],[4,21,4,22],[3,19,3,20],[5,21,5,22],[6,17,6,18],[6,19,6,20],[6,21,6,22],[1,1,1,4],[3,1,3,2],[4,1,4,2],[5,1,5,2],[6,1,6,2],[13,8,13,9],[3,14,3,16],[4,14,4,16],[5,14,5,16],[8,8,8,9],[9,8,9,9],[10,8,10,9],[11,8,11,9],[12,8,12,9],[11,14,11,16],[12,14,12,16],[13,14,13,16],[6,14,6,16],[7,14,7,16],[8,14,8,16],[9,14,9,16],[10,14,10,16],[12,1,12,2],[13,1,13,2],[3,3,3,4],[4,3,4,4],[5,3,5,4],[6,3,6,4],[7,3,7,4],[8,3,8,4],[9,3,9,4],[10,3,10,4],[11,3,11,4],[12,3,12,4],[13,3,13,4],[7,1,7,2],[8,1,8,2],[9,1,9,2],[10,1,10,2],[11,1,11,2],[13,5,13,7],[3,8,3,9],[8,5,8,7],[9,5,9,7],[10,5,10,7],[11,5,11,7],[12,5,12,7],[3,5,3,7],[4,5,4,7],[5,5,5,7],[6,5,6,7],[7,5,7,7],[4,8,4,9],[5,8,5,9],[6,8,6,9],[7,8,7,9]]}
[]
[null,"Frais de fonctionnement"]
[]
[null,"Catégorie",null,"Prestataire",null,"Libellé de la pièce",null,null,"N° de pièce bénéficiaire",null,"Date d'émission de la pièce","Montant","Montant déclaré","Montant accepté","Motif de la révision",null,null,"Commentaires SPW EER",null,"Date de contrôle pièce",null,"Date de contrôle sur place"]
[]
[]
[]
[]
[]
[]
[]
[]
[]
[]
[null,"END_LIST",null,null,null,null,null,null,null,null,"Total :",{"$f":"SUM(L5:L14)","v":0},{"$f":"SUM(M5:M14)","v":0},{"$f":"SUM(N5:N14)","v":0}]

{"sheet":"Équipement","index":3,"n_rows":15,"n_cols":22,"rows_kept":15,"cut":false,"hidden":false,"merged":[[12,19,12,20],[12,21,12,22],[13,1,13,2],[13,3,13,4],[13,5,13,7],[13,8,13,9],[13,14,13,16],[13,17,13,18],[13,19,13,20],[13,21,13,22],[12,1,12,2],[12,3,12,4],[12,5,12,7],[12,8,12,9],[12,14,12,16],[12,17,12,18],[10,19,10,20],[10,21,10,22],[11,1,11,2],[11,3,11,4],[11,5,11,7],[11,8,11,9],[11,14,11,16],[11,17,11,18],[11,19,11,20],[11,21,11,22],[10,1,10,2],[10,3,10,4],[10,5,10,7],[10,8,10,9],[10,14,10,16],[10,17,10,18],[8,19,8,20],[8,21,8,22],[9,1,9,2],[9,3,9,4],[9,5,9,7],[9,8,9,9],[9,14,9,16],[9,17,9,18],[9,19,9,20],[9,21,9,22],[8,1,8,2],[8,3,8,4],[8,5,8,7],[8,8,8,9],[8,14,8,16],[8,17,8,18],[7,17,7,18],[7,19,7,20],[7,21,7,22],[6,1,6,2],[6,3,6,4],[6,5,6,7],[6,8,6,9],[6,14,6,16],[6,17,6,18],[7,1,7,2],[7,3,7,4],[7,5,7,7],[7,8,7,9],[7,14,7,16],[5,17,5,18],[5,19,5,20],[5,21,5,22],[6,19,6,20],[6,21,6,22],[5,1,5,2],[5,3,5,4],[5,5,5,7],[5,8,5,9],[5,14,5,16],[3,17,3,18],[3,19,3,20],[3,21,3,22],[4,1,4,2],[4,3,4,4],[4,5,4,7],[4,8,4,9],[4,14,4,16],[4,17,4,18],[4,19,4,20],[3,14,3,16],[4,21,4,22],[1,1,1,4],[3,1,3,2],[3,3,3,4],[3,5,3,7],[3,8,3,9]]}
[]
[null,"Équipement"]
[]
[null,"Matériel acquis",null,"Prestataire",null,"Libellé de la pièce",null,null,"N° de pièce bénéficiaire",null,"Date d'émission de la pièce","Montant","Montant déclaré","Montant accepté","Motif de la révision",null,null,"Commentaires SPW EER",null,"Date de contrôle pièce",null,"Date de contrôle sur place"]
[]
[]
[]
[]
[]
[]
[]
[]
[]
[]
[null,"END_LIST",null,null,null,null,null,null,null,null,"Total :",{"$f":"SUM(L5:L14)","v":0},{"$f":"SUM(M5:M14)","v":0},{"$f":"SUM(N5:N14)","v":0}]

{"sheet":"Récapitulatif","index":4,"n_rows":24,"n_cols":10,"rows_kept":24,"cut":false,"hidden":false,"merged":[[20,9,21,16],[22,9,22,16],[23,9,23,16],[3,9,10,16],[8,4,8,5],[8,6,8,7],[11,9,12,16],[5,6,5,7],[11,6,11,7],[6,6,6,7],[12,6,12,7],[9,4,9,5],[9,6,9,7],[10,4,10,5],[10,6,10,7],[7,6,7,7],[11,1,11,3],[12,1,12,3],[11,4,11,5],[7,1,7,3],[8,1,8,3],[9,1,9,3],[10,1,10,3],[7,4,7,5],[1,1,1,3],[5,1,5,3],[5,4,5,5],[6,1,6,3],[6,4,6,5],[3,1,3,5],[17,9,19,16],[13,9,16,16],[16,1,16,3],[12,4,12,5],[16,4,16,5],[15,4,15,5],[15,6,15,7],[16,6,16,7],[13,1,13,3],[14,1,14,3],[15,1,15,3],[13,4,13,5],[13,6,13,7],[14,4,14,5],[14,6,14,7]]}
[]
[null,"Récapitulatif"]
[]
[null,{"$f":"_xlfn.CONCAT(\"Période de \",TEXT(Identification!D22,\"mmmm aaaa\"),\" à \",TEXT(IF(Identification!D21=\"6 mois\",EDATE(Identification!D22,5),EDATE(Identification!D22,11)),\"mmmm aaaa\"),\", soit \",Identification!D21)","v":"Période de janvier 1900 à mai 1900, soit 6 mois"},null,null,null,null,null,null,null,"Étapes suivantes:\n\n1) Dès que vous avez fini de compléter soigneusement toutes les cases/colonnes en jaune, vous renommez le fichier de la façon suivante:\n\nN° de convention-Nom du bénéficiaire-Période de début (mmaaaa)-Période de Fin (mmaaaa)\nExemple: 59-FactorySA-102023-092024"]
[]
[null,"Rubrique",null,null,"Montant déclaré",null,"Montant accepté"]
[null,"Personnel",null,null,0,null,0]
[null,"Fonctionnement",null,null,{"$f":"Fonctionnement!M15","v":0},null,{"$f":"Fonctionnement!N15","v":0}]
[null,{"$f":"Divers!H2","v":"Consommables"},null,null,{"$f":"SUMIF(Fonctionnement!$B$5:$C$14,B9,Fonctionnement!$M$5:$M$14)","v":0},null,{"$f":"SUMIF(Fonctionnement!$B$5:$C$14,B9,Fonctionnement!$N$5:$N$14)","v":0}]
[null,{"$f":"Divers!H3","v":"Petit matériel et outillage"},null,null,{"$f":"SUMIF(Fonctionnement!$B$5:$C$14,B10,Fonctionnement!$M$5:$M$14)","v":0},null,{"$f":"SUMIF(Fonctionnement!$B$5:$C$14,B10,Fonctionnement!$N$5:$N$14)","v":0}]
[null,{"$f":"Divers!H4","v":"Prestation externe"},null,null,{"$f":"SUMIF(Fonctionnement!$B$5:$C$14,B11,Fonctionnement!$M$5:$M$14)","v":0},null,{"$f":"SUMIF(Fonctionnement!$B$5:$C$14,B11,Fonctionnement!$N$5:$N$14)","v":0}]
[null,{"$f":"Divers!H5","v":"Prestation interne"},null,null,{"$f":"SUMIF(Fonctionnement!$B$5:$C$14,B12,Fonctionnement!$M$5:$M$14)","v":0},null,{"$f":"SUMIF(Fonctionnement!$B$5:$C$14,B12,Fonctionnement!$N$5:$N$14)","v":0},null,null,"2) Vous imprimez la déclaration de créance (onglet suivant) que vous signez en 2 exemplaires originaux et les renvoyez à l'adresse suivante:"]
[null,{"$f":"Divers!H6","v":"Communication"},null,null,{"$f":"SUMIF(Fonctionnement!$B$5:$C$14,B13,Fonctionnement!$M$5:$M$14)","v":0},null,{"$f":"SUMIF(Fonctionnement!$B$5:$C$14,B13,Fonctionnement!$N$5:$N$14)","v":0}]
[null,"Equipement",null,null,{"$f":"Équipement!M15","v":0},null,{"$f":"Équipement!N15","v":0},null,null,"SPW Économie, Emploi, Recherche\nDirection de la Gestion Financière\nPlace de la Wallonie, 1 - Bâtiment II, 5ème étage\n5100 Jambes"]
[null,"Frais généraux",null,null,{"$f":"SUM(E7:F8)*Identification!$D$26","v":0},null,{"$f":"SUM(G7:H8)*Identification!$D$26","v":0}]
[null,"Total",null,null,{"$f":"SUM(E7:F8)+SUM(E14:F15)","v":0},null,{"$f":"SUM(G7:H8)+SUM(G14:H15)","v":0}]
[null,"Intervention du SPW",null,null,{"$f":"E16*Identification!$D$27","v":0},null,{"$f":"G16*Identification!$D$27","v":0}]
[null,null,null,null,null,null,null,null,null,"3) Vous imprimez la déclaration sur l'honneur pour le personnel APE (si d'application) (onglet \"Déclaration APE\") et le récapitulatif APE que vous signez en 2 exemplaires originaux et renvoyez à la même adresse."]
[]
[]
[null,null,null,null,null,null,null,null,null,"4) Vous envoyez le relevé des dépenses (ce tableau Excel) et les pièces justificatives à l'adresse mail suivante:"]
[]
[null,null,null,null,null,null,null,null,null,"dc.dgf.dgo6@spw.wallonie.be"]
[null,null,null,null,null,null,null,null,null,"(et non dg06)"]

{"sheet":"Déclaration créance","index":5,"n_rows":31,"n_cols":6,"rows_kept":31,"cut":false,"hidden":false,"merged":[[30,0,30,6],[19,0,20,6],[26,0,26,6],[29,0,29,6],[17,0,18,6],[22,0,22,2],[22,3,22,6],[23,0,23,6],[24,0,24,6],[28,0,28,6],[16,0,16,6],[13,0,13,1],[14,0,14,6],[8,0,10,6],[1,1,2,4],[1,5,2,5],[5,0,5,6],[4,1,4,6],[6,0,6,6],[12,0,12,6],[13,2,13,6]]}
[]
[null,"Déclaration de créance n°",null,null,null,"<x>"]
[]
[]
["Je soussigné,","<Nom Prénom>"]
[{"$f":"_xlfn.CONCAT(\"représentant \",Identification!D7)","v":"représentant "}]
[{"$f":"_xlfn.CONCAT(\"déclare qu'il est dû par la Région wallone \",TEXT(Récapitulatif!E17,\"#.##0,00 €\"),\".\")","v":"déclare qu'il est dû par la Région wallone 0,00 €."}]
[]
[{"$f":"_xlfn.CONCAT(\"Cette somme correspond à l'intervention régionale dans les dépenses soumises pour la période de \",TEXT(Identification!D22,\"mmmm aaaa\"),\" à \",TEXT(IF(Identification!D21=\"6 mois\",EDATE(Identification!D22,5),EDATE(Identification!D22,11)),\"mmmm aaaa\"),\" tel que prévu par la convention numéro \",Identification!D4,\" (\",Identification!D5,\").\")","v":"Cette somme correspond à l'intervention régionale dans les dépenses soumises pour la période de janvier 1900 à mai 1900 tel que prévu par la convention numéro  ()."}]
[]
[]
[]
["Le montant de cette déclaration de créance est à payer au compte IBAN"]
["<BEXX XXXX XXXX XXXX>",null,{"$f":"_xlfn.CONCAT(\"ouvert au nom de \",Identification!D7,\" avec la mention\")","v":"ouvert au nom de  avec la mention"}]
["<Communication>"]
[]
["J'affirme sur l'honneur que la présente déclaration est sincère et véritable à la somme de"]
["zéro euro"]
[]
["et que toutes les mesures nécessaires ont été prises pour éviter qu'une dépense soit imputée plusieurs fois."]
[]
[]
[{"$f":"IF(Identification!D6=Divers!D2,\"Le numéro d'engagement juridique est le\",\"\")","v":""}]
[{"$f":"IF(Identification!D6=Divers!D2,\"Correspondant budgétaire: Gaëtan PONTIGO MONDACA\",\"\")","v":""}]
[{"$f":"IF(Identification!D6=Divers!D2,\"Adresse mail du corco: gaetan.pontigomandaca@spw.wallonie.be\",\"\")","v":""}]
[]
[{"$f":"_xlfn.CONCAT(\"Fait en 2 exemplaires, le \",TEXT(TODAY(),\"jj mmmm aaaa\"))","v":"Fait en 2 exemplaires, le 23 février 2024"}]
[]
[{"$f":"_xlfn.CONCAT(\"Pour \",Identification!D7)","v":"Pour "}]
["<Nom Prénom>"]
["<Fonction>"]

{"sheet":"Déclaration APE","index":6,"n_rows":35,"n_cols":6,"rows_kept":35,"cut":false,"hidden":false,"merged":[[8,0,8,6],[34,0,34,6],[32,0,32,6],[9,0,10,6],[11,0,12,6],[30,0,30,6],[33,0,33,6],[14,0,17,6],[19,0,21,6],[23,0,24,6],[1,1,2,4],[1,5,2,5],[4,1,4,6],[5,0,5,6],[6,0,7,6]]}
[]
[null,"Déclaration sur l'honneur n°",null,null,null,"<x>"]
[]
[]
["Je soussigné,",{"$f":"'Déclaration créance'!B5","v":"<Nom Prénom>"}]
[{"$f":"_xlfn.CONCAT(\"représentant \",Identification!D7)","v":"représentant "}]
[{"$f":"_xlfn.CONCAT(\"déclare avoir affecté un subside APE de 0,00 € à la convention \", Identification!D4, \" pour la période de \", TEXT(Identification!D22,\"mmmm aaaa\"), \" à \", TEXT(EDATE(Identification!D22, 5), \"mmmm aaaa\"), \".\")","v":"déclare avoir affecté un subside APE de 0,00 € à la convention  pour la période de janvier 1900 à mai 1900."}]
[]
["J'affirme sur l'honneur que la présente attestation est sincère et véritable à la somme de"]
["zéro euro."]
[]
["À cet égard, aucune dépense de personnel liée à l'action n'a bénéficié de plusieurs sources de financement qui entraîneraient un remboursement supérieur au coût réellement engendré. "]
[]
[]
["Dans le cadre de ce projet, les art. 11 et s. de la loi du 16 mai 2003 fixant les dispositions générales applicables aux budgets, au contrôle des subventions et à la comptabilité des communautés et des régions, ainsi qu'à l'organisation du contrôle de la Cour des comptes, ont été respectés. "]
[]
[]
[]
[]
["Celle-ci stipule que toute subvention doit être utilisée conformément à l'objectif pour lequel elle a été accordée. En cas de non-respect de cette condition, le bénéficiaire est tenu de rembourser toute somme indûment perçue.  "]
[]
[]
[]
["En cas de non-respect de cette condition, le bénéficiaire est tenu de rembourser toute somme indûment perçue."]
[]
[]
[]
[]
["Le détail de la répartition du montant APE est repris dans le tableau ci-joint."]
[]
[{"$f":"_xlfn.CONCAT(\"Fait en 2 exemplaires, le \",TEXT(TODAY(),\"jj mmmm aaaa\"))","v":"Fait en 2 exemplaires, le 23 février 2024"}]
[]
[{"$f":"_xlfn.CONCAT(\"Pour \",Identification!D7)","v":"Pour "}]
["<Nom Prénom>"]
["<Fonction>"]

{"sheet":"Récapitulatif APE","index":7,"n_rows":8,"n_cols":5,"rows_kept":8,"cut":false,"hidden":false,"merged":[[7,4,7,5],[7,6,7,8],[6,4,6,5],[6,6,6,8],[1,4,2,8],[4,4,4,8]]}
[]
[null,null,null,null,"Récapitulatif des aides APE"]
[]
[]
[null,null,null,null,{"$f":"_xlfn.CONCAT(\"Période de \",TEXT(Identification!D22,\"mmmm aaaa\"),\" à \",TEXT(IF(Identification!D21=\"6 mois\",EDATE(Identification!D22,5),EDATE(Identification!D22,11)),\"mmmm aaaa\"),\", soit \",Identification!D21)","v":"Période de janvier 1900 à mai 1900, soit 6 mois"}]
[]
[null,null,null,null,{"$f":"_xlfn.CONCAT(\"Budget APE \",YEAR(Identification!D22),\" :\")","v":"Budget APE 1900 :"}]
[null,null,null,null,{"$f":"IF(YEAR(Identification!D22)<>YEAR(EDATE(Identification!D22,IF(Identification!D21=\"6 mois\",5,11))),_xlfn.CONCAT(\"Budget APE \",YEAR(EDATE(Identification!D22,IF(Identification!D21=\"6 mois\",5,11))),\" :\"),\"\")","v":""}]

{"sheet":"Divers","index":8,"n_rows":94,"n_cols":26,"rows_kept":94,"cut":false,"hidden":true,"merged":[[6,0,6,3],[7,0,7,3],[8,0,8,3],[11,0,11,1],[22,0,22,1],[57,0,57,1],[21,25,22,32],[27,25,27,32],[39,25,39,32],[28,25,30,32],[37,25,38,32],[30,16,30,23],[28,16,29,23],[21,16,24,23],[36,1,36,4],[36,6,36,9],[31,25,36,32],[25,16,27,23],[31,16,31,23],[19,6,19,9],[19,1,19,4],[24,25,26,32],[23,25,23,32],[11,25,18,32],[19,25,20,32],[11,16,18,23],[19,16,20,23]]}
["Oui/Non","Période de dépense","Statut","Ministres","Frais généraux",null,null,"Catégorie","Motif de révision"]
["Oui","12 mois","Administrateur","Morreale",0.15,null,null,"Consommables","Limitation budgétaire"]
["Non","6 mois","Employé","Borsus",0,null,null,"Petit matériel et outillage","Limitation par gestionnaire technique"]
[null,null,"Ouvrier",null,null,null,null,"Prestation externe","Repris dans les Frais Généraux"]
[null,null,null,null,null,null,null,"Prestation interne","Dépense déjà présentée"]
["Template taux de chargement",null,null,null,null,null,null,"Communication","Dépense non admise"]
["Mon taux de chargement Employé est de :"]
["Mon taux de chargement Ouvrier est de :"]
["Mon taux de chargement Administrateur est de :",null,null,null,1,1]
[]
["Template entreprise 6 mois",null,null,null,null,null,null,null,null,null,null,null,null,null,null,null,"Consignes DGF",null,null,null,null,null,null,null,null,"Consignes Emploi"]
[null,null,null,null,null,null,null,null,null,null,null,null,null,null,null,null,"Étapes suivantes:\n\n1) Dès que vous avez fini de compléter soigneusement toutes les cases/colonnes en jaune, vous renommez le fichier de la façon suivante:\n\nN° de convention-Nom du bénéficiaire-Période de début (mmaaaa)-Période de Fin (mmaaaa)\nExemple: 59-FactorySA-102023-092024",null,null,null,null,null,null,null,null,"Étapes suivantes:\n\nDès que vous avez fini de compléter soigneusement toutes les cases/colonnes en jaune, vous renommez le fichier de la façon suivante:\n\nN° de projet-Nom du bénéficiaire-Période de début (mmaaaa)-Période de Fin (mmaaaa)\nExemple: 59-FactorySA-102023-092024"]
["Période","Brut","Montant APE mensuel lié au projet","Aides à déduire du salaire brut","Taux d'occupation","Total","Brut","Montant APE mensuel lié au projet","Aides à déduire du salaire brut","Taux d'occupation","Total"]
[{"$f":"Identification!$D$22","v":"00:00:00"},null,null,null,null,{"$f":"(B14-D14)*E14*IF(C12=\"Employé\",$F$4,IF(C12=\"Ouvrier\",$F$5,$F$6))-C14","v":0},null,null,null,null,{"$f":"(G14-I14)*J14*IF(C12=\"Employé\",$F$4,IF(C12=\"Ouvrier\",$F$5,$F$6))-H14","v":0}]
[{"$f":"EDATE(A14,1)","v":"1900-01-31"},null,null,null,null,{"$f":"(B15-D15)*E15*IF(C12=\"Employé\",$F$4,IF(C12=\"Ouvrier\",$F$5,$F$6))-C15","v":0},null,null,null,null,{"$f":"(G15-I15)*J15*IF(C12=\"Employé\",$F$4,IF(C12=\"Ouvrier\",$F$5,$F$6))-H15","v":0}]
[{"$f":"EDATE(A15,1)","v":"1900-02-28"},null,null,null,null,{"$f":"(B16-D16)*E16*IF(C12=\"Employé\",$F$4,IF(C12=\"Ouvrier\",$F$5,$F$6))-C16","v":0},null,null,null,null,{"$f":"(G16-I16)*J16*IF(C12=\"Employé\",$F$4,IF(C12=\"Ouvrier\",$F$5,$F$6))-H16","v":0}]
[{"$f":"EDATE(A16,1)","v":"1900-03-28"},null,null,null,null,{"$f":"(B17-D17)*E17*IF(C12=\"Employé\",$F$4,IF(C12=\"Ouvrier\",$F$5,$F$6))-C17","v":0},null,null,null,null,{"$f":"(G17-I17)*J17*IF(C12=\"Employé\",$F$4,IF(C12=\"Ouvrier\",$F$5,$F$6))-H17","v":0}]
[{"$f":"EDATE(A17,1)","v":"1900-04-28"},null,null,null,null,{"$f":"(B18-D18)*E18*IF(C12=\"Employé\",$F$4,IF(C12=\"Ouvrier\",$F$5,$F$6))-C18","v":0},null,null,null,null,{"$f":"(G18-I18)*J18*IF(C12=\"Employé\",$F$4,IF(C12=\"Ouvrier\",$F$5,$F$6))-H18","v":0}]
[{"$f":"EDATE(A18,1)","v":"1900-05-28"},null,null,null,null,{"$f":"(B19-D19)*E19*IF(C12=\"Employé\",$F$4,IF(C12=\"Ouvrier\",$F$5,$F$6))-C19","v":0},null,null,null,null,{"$f":"(G19-I19)*J19*IF(C12=\"Employé\",$F$4,IF(C12=\"Ouvrier\",$F$5,$F$6))-H19","v":0}]
[null,"Total déclaré :",null,null,null,{"$f":"SUM(F14:F19)","v":0},"Total accepté :",null,null,null,{"$f":"SUM(K14:K19)","v":0},null,null,null,null,null,"2) Vous imprimez la déclaration de créance (onglet suivant) que vous signez en 2 exemplaires originaux et les renvoyez à l'adresse suivante:",null,null,null,null,null,null,null,null,"Vous avez ensuite 2 modalités d'envoi à votre disposition:"]
[]
["Template entreprise 12 mois",null,null,null,null,null,null,null,null,null,null,null,null,null,null,null,"SPW Économie, Emploi, Recherche\nDirection de la Gestion Financière\nPlace de la Wallonie, 1 - Bâtiment II, 5ème étage\n5100 Jambes",null,null,null,null,null,null,null,null,"- En version numérique:\nVous complétez la déclaration de créance (onglet suivant) et la signez électroniquement à l'aide d'une"]
[]
["Période","Brut","Montant APE mensuel lié au projet","Aides à déduire du salaire brut","Taux d'occupation","Total","Brut","Montant APE mensuel lié au projet","Aides à déduire du salaire brut","Taux d'occupation","Total",null,null,null,null,null,null,null,null,null,null,null,null,null,null,"une signature électronique valide."]
[{"$f":"Identification!$D$22","v":"00:00:00"},null,null,null,null,{"$f":"(B25-D25)*E25*IF(C23=\"Employé\",$F$4,IF(C23=\"Ouvrier\",$F$5,$F$6))-C25","v":0},null,null,null,null,{"$f":"(G25-I25)*J25*IF(C23=\"Employé\",$G$4,IF(C23=\"Ouvrier\",$G$5,$G$6))-H25","v":0},null,null,null,null,null,null,null,null,null,null,null,null,null,null,"Vous transmettez ensuite la déclaration de créance et la déclaration sur l'honneur pour le personnel APE (si d'application) signées en pdf avec, en pièces attachées, le relevé de dépenses (tableau Excel) et les pièces justificatives à l'adresse mail suivante:"]
[{"$f":"EDATE(A25,1)","v":"1900-01-31"},null,null,null,null,{"$f":"(B26-D26)*E26*IF(C23=\"Employé\",$F$4,IF(C23=\"Ouvrier\",$F$5,$F$6))-C26","v":0},null,null,null,null,{"$f":"(G26-I26)*J26*IF(C23=\"Employé\",$G$4,IF(C23=\"Ouvrier\",$G$5,$G$6))-H26","v":0},null,null,null,null,null,"3) Vous imprimez la déclaration sur l'honneur pour le personnel APE (si d'application) (onglet \"Déclaration APE\") et le récapitulatif APE que vous signez en 2 exemplaires originaux et renvoyez à la même adresse."]
["1900-02-28",null,null,null,null,{"$f":"(B27-D27)*E27*IF(C23=\"Employé\",$F$4,IF(C23=\"Ouvrier\",$F$5,$F$6))-C27","v":0},null,null,null,null,{"$f":"(G27-I27)*J27*IF(C23=\"Employé\",$G$4,IF(C23=\"Ouvrier\",$G$5,$G$6))-H27","v":0}]
["1900-03-28",null,null,null,null,{"$f":"(B28-D28)*E28*IF(C23=\"Employé\",$F$4,IF(C23=\"Ouvrier\",$F$5,$F$6))-C28","v":0},null,null,null,null,{"$f":"(G28-I28)*J28*IF(C23=\"Employé\",$G$4,IF(C23=\"Ouvrier\",$G$5,$G$6))-H28","v":0},null,null,null,null,null,null,null,null,null,null,null,null,null,null,"metiers.porteurs.prw@spw.wallonie.be"]
["1900-04-28",null,null,null,null,{"$f":"(B29-D29)*E29*IF(C23=\"Employé\",$F$4,IF(C23=\"Ouvrier\",$F$5,$F$6))-C29","v":0},null,null,null,null,{"$f":"(G29-I29)*J29*IF(C23=\"Employé\",$G$4,IF(C23=\"Ouvrier\",$G$5,$G$6))-H29","v":0},null,null,null,null,null,"4) Vous envoyez le relevé des dépenses (ce tableau Excel) et les pièces justificatives à l'adresse mail suivante:",null,null,null,null,null,null,null,null,"- En version papier:\nVous imprimez la déclaration de créance (onglet suivant) et la déclaration sur l'honneur pour le personnel APE (si d'application) en 2 exemplaires originaux, les signez et les renvoyez à l'adresse suivante:"]
["1900-05-28",null,null,null,null,{"$f":"(B30-D30)*E30*IF(C23=\"Employé\",$F$4,IF(C23=\"Ouvrier\",$F$5,$F$6))-C30","v":0},null,null,null,null,{"$f":"(G30-I30)*J30*IF(C23=\"Employé\",$G$4,IF(C23=\"Ouvrier\",$G$5,$G$6))-H30","v":0}]
[{"$f":"EDATE(A30,1)","v":"1900-06-28"},null,null,null,null,{"$f":"(B31-D31)*E31*IF(C23=\"Employé\",$F$4,IF(C23=\"Ouvrier\",$F$5,$F$6))-C31","v":0},null,null,null,null,{"$f":"(G31-I31)*J31*IF(C23=\"Employé\",$G$4,IF(C23=\"Ouvrier\",$G$5,$G$6))-H31","v":0},null,null,null,null,null,"dc.dgf.dgo6@spw.wallonie.be"]
["1900-07-28",null,null,null,null,{"$f":"(B32-D32)*E32*IF(C23=\"Employé\",$F$4,IF(C23=\"Ouvrier\",$F$5,$F$6))-C32","v":0},null,null,null,null,{"$f":"(G32-I32)*J32*IF(C23=\"Employé\",$G$4,IF(C23=\"Ouvrier\",$G$5,$G$6))-H32","v":0},null,null,null,null,null,"(et non dg06)",null,null,null,null,null,null,null,null,"SPW Économie, Emploi, Recherche\nDépartement de l’Emploi et de la Formation professionnelle\nDirection des Politiques transversales Région/Communauté\nGaëtan Pontigo Mondaca\nBoulevard Cauchy, 47 - Bâtiment B étage 1\n5000 Namur"]
["1900-08-28",null,null,null,null,{"$f":"(B33-D33)*E33*IF(C23=\"Employé\",$F$4,IF(C23=\"Ouvrier\",$F$5,$F$6))-C33","v":0},null,null,null,null,{"$f":"(G33-I33)*J33*IF(C23=\"Employé\",$G$4,IF(C23=\"Ouvrier\",$G$5,$G$6))-H33","v":0}]
["1900-09-28",null,null,null,null,{"$f":"(B34-D34)*E34*IF(C23=\"Employé\",$F$4,IF(C23=\"Ouvrier\",$F$5,$F$6))-C34","v":0},null,null,null,null,{"$f":"(G34-I34)*J34*IF(C23=\"Employé\",$G$4,IF(C23=\"Ouvrier\",$G$5,$G$6))-H34","v":0}]
["1900-10-28",null,null,null,null,{"$f":"(B35-D35)*E35*IF(C23=\"Employé\",$F$4,IF(C23=\"Ouvrier\",$F$5,$F$6))-C35","v":0},null,null,null,null,{"$f":"(G35-I35)*J35*IF(C23=\"Employé\",$G$4,IF(C23=\"Ouvrier\",$G$5,$G$6))-H35","v":0}]
["1900-11-28",null,null,null,null,{"$f":"(B36-D36)*E36*IF(C23=\"Employé\",$F$4,IF(C23=\"Ouvrier\",$F$5,$F$6))-C36","v":0},null,null,null,null,{"$f":"(G36-I36)*J36*IF(C23=\"Employé\",$G$4,IF(C23=\"Ouvrier\",$G$5,$G$6))-H36","v":0}]
[null,"Total déclaré :",null,null,null,{"$f":"SUM(F25:F36)","v":0},"Total accepté :",null,null,null,{"$f":"SUM(K25:K36)","v":0}]
[null,null,null,null,null,null,null,null,null,null,null,null,null,null,null,null,null,null,null,null,null,null,null,null,null,"Le relevé des dépenses (tableau Excel) et les pièces justificatives doivent être envoyés à l'adresse mail suivante:"]
["Template université 6 mois"]
[null,null,null,null,null,null,null,null,null,null,null,null,null,null,null,null,null,null,null,null,null,null,null,null,null,"metiers.porteurs.prw@spw.wallonie.be"]
["Période","Brut soumis ONSS","Arrièrés","ONSS","Assurance","Double pécule de vacances payé","Modération salariale","Prime de fin d'année","Double pécule de vacances provisionné","Autres charges patronales","Brut + Charges patronales","Chèque repas","Indemnités kilométique","Allocations familiales","Hospitalisation","Pension extra légale","Divers","Coût total","Montant APE mensuel lié au prijet","Aides à déduire du salaire brut","Taux d'occupation","Coût à la charge de la convention"]
[{"$f":"Identification!$D$22","v":"00:00:00"},null,null,null,null,null,null,null,null,null,{"$f":"SUM(B42:J42)","v":0},null,null,null,null,null,null,{"$f":"SUM(K42:Q42)","v":0},null,null,null,{"$f":"(R42-T42)*U42-S42","v":0}]
[{"$f":"EDATE(A42,1)","v":"1900-01-31"},null,null,null,null,null,null,null,null,null,0,null,null,null,null,null,null,{"$f":"SUM(K43:Q43)","v":0},null,null,null,{"$f":"(R43-T43)*U43-S43","v":0}]
[{"$f":"EDATE(A43,1)","v":"1900-02-28"},null,null,null,null,null,null,null,null,null,0,null,null,null,null,null,null,0,null,null,null,0]
["1900-03-28",null,null,null,null,null,null,null,null,null,0,null,null,null,null,null,null,0,null,null,null,0]
["1900-04-28",null,null,null,null,null,null,null,null,null,0,null,null,null,null,null,null,0,null,null,null,0]
["1900-05-28",null,null,null,null,null,null,null,null,null,0,null,null,null,null,null,null,0,null,null,null,0]
[{"$f":"Identification!$D$22","v":"00:00:00"},null,null,null,null,null,null,null,null,null,0,null,null,null,null,null,null,0,null,null,null,0]
[{"$f":"EDATE(A48,1)","v":"1900-01-31"},null,null,null,null,null,null,null,null,null,0,null,null,null,null,null,null,0,null,null,null,0]
[{"$f":"EDATE(A49,1)","v":"1900-02-28"},null,null,null,null,null,null,null,null,null,0,null,null,null,null,null,null,0,null,null,null,0]
["1900-03-28",null,null,null,null,null,null,null,null,null,0,null,null,null,null,null,null,0,null,null,null,0]
["1900-04-28",null,null,null,null,null,null,null,null,null,0,null,null,null,null,null,null,0,null,null,null,0]
["1900-05-28",null,null,null,null,null,null,null,null,null,0,null,null,null,null,null,null,0,null,null,null,0]
[null,null,null,null,null,null,null,null,null,"Total déclaré :",{"$f":"SUM(K42:K47)","v":0},null,null,null,null,null,"Total déclaré :",{"$f":"SUM(R42:R47)","v":0},null,null,"Total déclaré :",{"$f":"SUM(V42:V47)","v":0}]
[null,null,null,null,null,null,null,null,null,"Total accepté :",{"$f":"SUM(K48:K53)","v":0},null,null,null,null,null,"Total accepté :",{"$f":"SUM(R48:R53)","v":0},null,null,"Total accepté :",{"$f":"SUM(V48:V53)","v":0}]
[]
["Template université 12 mois"]
[]
["Période","Brut soumis ONSS","Arrièrés","ONSS","Assurance","Double pécule de vacances payé","Modération salariale","Prime de fin d'année","Double pécule de vacances provisionné","Autres charges patronales","Brut + Charges patronales","Chèque repas","Indemnités kilométique","Allocations familiales","Hospitalisation","Pension extra légale","Divers","Coût total","Montant APE mensuel lié au projet","Aides à déduire du salaire brut","Taux d'occupation","Coût à la charge de la convention"]
[{"$f":"Identification!$D$22","v":"00:00:00"},null,null,null,null,null,null,null,null,null,{"$f":"SUM(B60:J60)","v":0},null,null,null,null,null,null,{"$f":"SUM(K60:Q60)","v":0},null,null,null,{"$f":"(R60-T60)*U60-S60","v":0}]
[{"$f":"EDATE(A60,1)","v":"1900-01-31"},null,null,null,null,null,null,null,null,null,0,null,null,null,null,null,null,{"$f":"SUM(K61:Q61)","v":0},null,null,null,{"$f":"(R61-T61)*U61-S61","v":0}]
[{"$f":"EDATE(A61,1)","v":"1900-02-28"},null,null,null,null,null,null,null,null,null,0,null,null,null,null,null,null,0,null,null,null,0]
["1900-03-28",null,null,null,null,null,null,null,null,null,0,null,null,null,null,null,null,0,null,null,null,0]
["1900-04-28",null,null,null,null,null,null,null,null,null,0,null,null,null,null,null,null,0,null,null,null,0]
["1900-05-28",null,null,null,null,null,null,null,null,null,0,null,null,null,null,null,null,0,null,null,null,0]
["1900-06-28",null,null,null,null,null,null,null,null,null,0,null,null,null,null,null,null,0,null,null,null,0]
["1900-07-28",null,null,null,null,null,null,null,null,null,0,null,null,null,null,null,null,0,null,null,null,0]
["1900-08-28",null,null,null,null,null,null,null,null,null,0,null,null,null,null,null,null,0,null,null,null,0]
["1900-09-28",null,null,null,null,null,null,null,null,null,0,null,null,null,null,null,null,0,null,null,null,0]
["1900-10-28",null,null,null,null,null,null,null,null,null,0,null,null,null,null,null,null,0,null,null,null,0]
["1900-11-28",null,null,null,null,null,null,null,null,null,0,null,null,null,null,null,null,0,null,null,null,0]
[{"$f":"Identification!$D$22","v":"00:00:00"},null,null,null,null,null,null,null,null,null,0,null,null,null,null,null,null,0,null,null,null,0]
[{"$f":"EDATE(A72,1)","v":"1900-01-31"},null,null,null,null,null,null,null,null,null,0,null,null,null,null,null,null,0,null,null,null,0]
[{"$f":"EDATE(A73,1)","v":"1900-02-28"},null,null,null,null,null,null,null,null,null,0,null,null,null,null,null,null,0,null,null,null,0]
["1900-03-28",null,null,null,null,null,null,null,null,null,0,null,null,null,null,null,null,0,null,null,null,0]
["1900-04-28",null,null,null,null,null,null,null,null,null,0,null,null,null,null,null,null,0,null,null,null,0]
["1900-05-28",null,null,null,null,null,null,null,null,null,0,null,null,null,null,null,null,0,null,null,null,0]
["1900-06-28",null,null,null,null,null,null,null,null,null,0,null,null,null,null,null,null,0,null,null,null,0]
["1900-07-28",null,null,null,null,null,null,null,null,null,0,null,null,null,null,null,null,0,null,null,null,0]
["1900-08-28",null,null,null,null,null,null,null,null,null,0,null,null,null,null,null,null,0,null,null,null,0]
[{"$f":"EDATE(A80,1)","v":"1900-09-28"},null,null,null,null,null,null,null,null,null,0,null,null,null,null,null,null,0,null,null,null,0]
["1900-10-28",null,null,null,null,null,null,null,null,null,0,null,null,null,null,null,null,0,null,null,null,0]
["1900-11-28",null,null,null,null,null,null,null,null,null,0,null,null,null,null,null,null,0,null,null,null,0]
[null,null,null,null,null,null,null,null,null,"Total déclaré :",{"$f":"SUM(K60:K71)","v":0},null,null,null,null,null,"Total déclaré :",{"$f":"SUM(R60:R71)","v":0},null,null,"Total déclaré :",{"$f":"SUM(V60:V71)","v":0}]
[null,null,null,null,null,null,null,null,null,"Total accepté :",{"$f":"SUM(K72:K83)","v":0},null,null,null,null,null,"Total accepté :",{"$f":"SUM(R72:R83)","v":0},null,null,"Total accepté :",{"$f":"SUM(V72:V83)","v":0}]
[]
[]
["Nom",{"$f":"Identification!$D$22","v":"00:00:00"},{"$f":"EDATE(B88,1)","v":"1900-01-31"},{"$f":"EDATE(C88,1)","v":"1900-02-28"},"1900-03-28","1900-04-28","1900-05-28","Total"]
[null,null,null,null,null,null,null,{"$f":"SUM(B89:G89)","v":0}]
["Total",null,null,null,null,null,null,{"$f":"SUM(B90:G90)","v":0}]
[]
["Nom",{"$f":"Identification!$D$22","v":"00:00:00"},{"$f":"EDATE(B92,1)","v":"1900-01-31"},{"$f":"EDATE(C92,1)","v":"1900-02-28"},"1900-03-28","1900-04-28",{"$f":"EDATE(F92,1)","v":"1900-05-28"},"1900-06-28","1900-07-28","1900-08-28","1900-09-28","1900-10-28",{"$f":"EDATE(L92,1)","v":"1900-11-28"},"Total"]
[null,null,null,null,null,null,null,null,null,null,null,null,null,{"$f":"SUM(B93:M93)","v":0}]
["Total",null,null,null,null,null,null,null,null,null,null,null,null,{"$f":"SUM(B94:M94)","v":0}]